[Event "*** Titled Tuesday Blitz"]
[Site "Chess.com"]
[Date "2021.03.09"]
[Round "4"]
[White "Orest_Vovk"]
[Black "LamaChampetre"]
[Result "1-0"]
[WhiteElo "2434"]
[BlackElo "2215"]
[TimeControl "180+1"]
[EndTime "10:42:30 PST"]
[Termination "Orest_Vovk won on time"]

1. d4 {[%clk 0:03:00.9]} 1... Nf6 {[%clk 0:02:59.6]} 2. Nf3 {[%clk 0:02:49.7]}
2... g6 {[%clk 0:02:58.2]} 3. Bg5 {[%clk 0:02:44.4]} 3... Bg7 {[%clk 0:02:57.8]}
4. Nbd2 {[%clk 0:02:44.5]} 4... d5 {[%clk 0:02:57.4]} 5. e3 {[%clk 0:02:44.5]}
5... O-O {[%clk 0:02:55.8]} 6. Bd3 {[%clk 0:02:40.4]} 6... c5 {[%clk 0:02:55.5]}
7. c3 {[%clk 0:02:40.3]} 7... Nc6 {[%clk 0:02:55.5]} 8. O-O {[%clk 0:02:40.2]}
8... b6 {[%clk 0:02:40.6]} 9. Ne5 {[%clk 0:02:27.2]} 9... Nxe5 {[%clk
0:02:29.1]} 10. dxe5 {[%clk 0:02:24.4]} 10... Ng4 {[%clk 0:02:28.9]} 11. Bb5
{[%clk 0:02:09]} 11... Nxe5 {[%clk 0:02:20.7]} 12. Nf3 {[%clk 0:02:03]} 12...
Bb7 {[%clk 0:02:05.7]} 13. Nxe5 {[%clk 0:02:01.3]} 13... Bxe5 {[%clk 0:02:05.5]}
14. Bh6 {[%clk 0:02:01.5]} 14... Bg7 {[%clk 0:02:03.6]} 15. Bxg7 {[%clk
0:02:01.2]} 15... Kxg7 {[%clk 0:02:04.5]} 16. a4 {[%clk 0:01:56.5]} 16... a6
{[%clk 0:02:00]} 17. Be2 {[%clk 0:01:56.2]} 17... Qd6 {[%clk 0:01:57.4]} 18. Bf3
{[%clk 0:01:54.3]} 18... Rab8 {[%clk 0:01:44.2]} 19. b4 {[%clk 0:01:44.2]} 19...
Rfd8 {[%clk 0:01:24.9]} 20. a5 {[%clk 0:01:39.5]} 20... cxb4 {[%clk 0:01:20.9]}
21. Qd4+ {[%clk 0:01:37.9]} 21... e5 {[%clk 0:01:16.1]} 22. Qxb4 {[%clk
0:01:37.5]} 22... b5 {[%clk 0:01:04]} 23. Rfd1 {[%clk 0:01:32.8]} 23... Qe6
{[%clk 0:00:49.8]} 24. h3 {[%clk 0:01:27.2]} 24... Rbc8 {[%clk 0:00:49.7]} 25.
Bg4 {[%clk 0:01:20.3]} 25... f5 {[%clk 0:00:47.5]} 26. Bf3 {[%clk 0:01:20.3]}
26... Rc4 {[%clk 0:00:46.1]} 27. Qb2 {[%clk 0:01:16.8]} 27... Rdc8 {[%clk
0:00:42]} 28. Ra3 {[%clk 0:01:11.9]} 28... R4c5 {[%clk 0:00:37.2]} 29. Qb4
{[%clk 0:01:07.2]} 29... Rc4 {[%clk 0:00:35.5]} 30. Qb2 {[%clk 0:01:06.3]} 30...
R4c5 {[%clk 0:00:35.1]} 31. Qd2 {[%clk 0:01:00.1]} 31... Qe7 {[%clk 0:00:24.2]}
32. Qb2 {[%clk 0:00:54.7]} 32... Qc7 {[%clk 0:00:21.3]} 33. Qb4 {[%clk
0:00:42.8]} 33... Rc4 {[%clk 0:00:17.3]} 34. Qb2 {[%clk 0:00:40.7]} 34... Rxc3
{[%clk 0:00:14.4]} 35. Rxc3 {[%clk 0:00:28.6]} 35... Qxc3 {[%clk 0:00:15.3]} 36.
Qxc3 {[%clk 0:00:24]} 36... Rxc3 {[%clk 0:00:15.7]} 37. Bxd5 {[%clk 0:00:24.9]}
37... Bxd5 {[%clk 0:00:15.3]} 38. Rxd5 {[%clk 0:00:25.8]} 38... Ra3 {[%clk
0:00:15.1]} 39. Rxe5 {[%clk 0:00:25.2]} 39... Rxa5 {[%clk 0:00:14]} 40. Re7+
{[%clk 0:00:25.7]} 40... Kh6 {[%clk 0:00:11.8]} 41. Rb7 {[%clk 0:00:22.1]} 41...
Ra4 {[%clk 0:00:10.1]} 42. Rb6 {[%clk 0:00:20.3]} 42... b4 {[%clk 0:00:09]} 43.
g4 {[%clk 0:00:20.6]} 43... fxg4 {[%clk 0:00:08.3]} 44. hxg4 {[%clk 0:00:20.7]}
44... a5 {[%clk 0:00:05.9]} 45. f4 {[%clk 0:00:20.5]} 45... Kg7 {[%clk
0:00:04.5]} 46. Rb7+ {[%clk 0:00:20]} 46... Kf6 {[%clk 0:00:03.2]} 47. e4 {[%clk
0:00:18.9]} 47... Ke6 {[%clk 0:00:02.2]} 48. f5+ {[%clk 0:00:16.4]} 48... Ke5
{[%clk 0:00:01.8]} 49. Re7+ {[%clk 0:00:16.2]} 49... Kf6 {[%clk 0:00:00.7]} 50.
Re6+ {[%clk 0:00:15.7]} 1-0

[Event "*** Titled Tuesday Blitz"]
[Site "Chess.com"]
[Date "2021.03.09"]
[Round "4"]
[White "garicradomir"]
[Black "Loy_Konstantin"]
[Result "0-1"]
[WhiteElo "2217"]
[BlackElo "2360"]
[TimeControl "180+1"]
[EndTime "10:42:30 PST"]
[Termination "Loy_Konstantin won by resignation"]

1. e4 {[%clk 0:03:00.9]} 1... c5 {[%clk 0:02:55.7]} 2. Nf3 {[%clk 0:03:01.1]}
2... d6 {[%clk 0:02:55.7]} 3. Be2 {[%clk 0:03:01.2]} 3... Nf6 {[%clk 0:02:54.7]}
4. c3 {[%clk 0:03:01.6]} 4... g6 {[%clk 0:02:45]} 5. O-O {[%clk 0:02:59.8]} 5...
Bg7 {[%clk 0:02:44.7]} 6. Bb5+ {[%clk 0:03:00]} 6... Bd7 {[%clk 0:02:44.4]} 7.
Bxd7+ {[%clk 0:02:59.4]} 7... Nbxd7 {[%clk 0:02:45.3]} 8. Re1 {[%clk 0:02:59.4]}
8... O-O {[%clk 0:02:44.1]} 9. d4 {[%clk 0:03:00]} 9... cxd4 {[%clk 0:02:45]}
10. cxd4 {[%clk 0:03:00.9]} 10... d5 {[%clk 0:02:45.1]} 11. e5 {[%clk
0:03:01.5]} 11... Ne4 {[%clk 0:02:45.4]} 12. Nbd2 {[%clk 0:03:01.5]} 12... Nxd2
{[%clk 0:02:44.4]} 13. Bxd2 {[%clk 0:03:01.4]} 13... Qb6 {[%clk 0:02:44.1]} 14.
Bc3 {[%clk 0:02:56.5]} 14... e6 {[%clk 0:02:44.1]} 15. h4 {[%clk 0:02:54.5]}
15... Rfc8 {[%clk 0:02:26.5]} 16. h5 {[%clk 0:02:51.3]} 16... Nf8 {[%clk
0:02:26]} 17. Qd2 {[%clk 0:02:49.9]} 17... Qd8 {[%clk 0:02:23.7]} 18. Qf4 {[%clk
0:02:46.2]} 18... Rc6 {[%clk 0:01:59.8]} 19. g3 {[%clk 0:02:34.7]} 19... Rac8
{[%clk 0:01:58.7]} 20. Kg2 {[%clk 0:02:34.6]} 20... h6 {[%clk 0:01:51.6]} 21.
hxg6 {[%clk 0:02:32.2]} 21... fxg6 {[%clk 0:01:51.3]} 22. Qg4 {[%clk 0:02:21.9]}
22... Qe8 {[%clk 0:01:47.8]} 23. Rh1 {[%clk 0:02:16.9]} 23... Qf7 {[%clk
0:01:45.6]} 24. Nh4 {[%clk 0:02:11.6]} 24... g5 {[%clk 0:01:42.2]} 25. Nf3
{[%clk 0:02:09.9]} 25... Ng6 {[%clk 0:01:34.7]} 26. Rh5 {[%clk 0:02:04.8]} 26...
Rf8 {[%clk 0:01:31.7]} 27. Rah1 {[%clk 0:02:02.8]} 27... Qf5 {[%clk 0:01:31]}
28. Qxf5 {[%clk 0:01:44.3]} 28... Rxf5 {[%clk 0:01:31.9]} 29. Rxh6 {[%clk
0:01:42.6]} 29... Bxh6 {[%clk 0:01:30.5]} 30. Rxh6 {[%clk 0:01:43.5]} 30... Kg7
{[%clk 0:01:23.6]} 31. Rh5 {[%clk 0:01:39]} 31... g4 {[%clk 0:01:18.5]} 32. Rxf5
{[%clk 0:01:39.1]} 32... exf5 {[%clk 0:01:17]} 33. Ng5 {[%clk 0:01:33.2]} 33...
Nf8 {[%clk 0:01:08.4]} 34. f3 {[%clk 0:00:56.1]} 34... Ne6 {[%clk 0:00:54]} 35.
fxg4 {[%clk 0:00:50.1]} 35... Nxg5 {[%clk 0:00:51.3]} 36. gxf5 {[%clk
0:00:50.3]} 36... Rc8 {[%clk 0:00:45.8]} 37. g4 {[%clk 0:00:47.6]} 37... Kf7
{[%clk 0:00:43.9]} 38. Kg3 {[%clk 0:00:45.3]} 38... Rh8 {[%clk 0:00:43.7]} 39.
Kf4 {[%clk 0:00:34.2]} 39... Ne4 {[%clk 0:00:37.5]} 40. Bb4 {[%clk 0:00:25.6]}
40... Rh1 {[%clk 0:00:32.3]} 41. e6+ {[%clk 0:00:20.3]} 41... Kf6 {[%clk
0:00:25.5]} 42. Bf8 {[%clk 0:00:11.2]} 42... Rf1+ {[%clk 0:00:21]} 43. Ke3
{[%clk 0:00:11]} 43... Re1+ {[%clk 0:00:14.2]} 44. Kf3 {[%clk 0:00:10.7]} 44...
Ng5+ {[%clk 0:00:13.2]} 45. Kf2 {[%clk 0:00:09.7]} 45... Re4 {[%clk 0:00:11.9]}
46. Bd6 {[%clk 0:00:08.4]} 46... Rxg4 {[%clk 0:00:09.8]} 47. Be5+ {[%clk
0:00:06.9]} 47... Ke7 {[%clk 0:00:04.5]} 48. Ke3 {[%clk 0:00:07.3]} 48... Re4+
{[%clk 0:00:03.9]} 49. Kd3 {[%clk 0:00:07]} 49... Nxe6 {[%clk 0:00:04.2]} 50.
f6+ {[%clk 0:00:05.6]} 50... Kf7 {[%clk 0:00:04]} 51. b4 {[%clk 0:00:06.5]}
51... a6 {[%clk 0:00:03.5]} 52. Bf4 {[%clk 0:00:07.2]} 52... Rxf4 {[%clk
0:00:03.5]} 0-1

[Event "*** Titled Tuesday Blitz"]
[Site "Chess.com"]
[Date "2021.03.09"]
[Round "4"]
[White "Saxar85"]
[Black "ural58"]
[Result "1/2-1/2"]
[WhiteElo "2787"]
[BlackElo "2564"]
[TimeControl "180+1"]
[EndTime "10:42:32 PST"]
[Termination "Game drawn by repetition"]

1. e4 {[%clk 0:02:57.5]} 1... d5 {[%clk 0:02:33.9]} 2. exd5 {[%clk 0:02:56.7]}
2... Qxd5 {[%clk 0:02:33.3]} 3. Nc3 {[%clk 0:02:56.2]} 3... Qa5 {[%clk
0:02:32.7]} 4. Bc4 {[%clk 0:02:54.7]} 4... Nf6 {[%clk 0:02:31.5]} 5. d3 {[%clk
0:02:54.7]} 5... Bg4 {[%clk 0:02:31.5]} 6. f3 {[%clk 0:02:53.1]} 6... Be6 {[%clk
0:02:30.8]} 7. Bxe6 {[%clk 0:02:48]} 7... fxe6 {[%clk 0:02:24.3]} 8. Ne2 {[%clk
0:02:43.6]} 8... e5 {[%clk 0:02:22.6]} 9. Be3 {[%clk 0:02:40.7]} 9... Nc6 {[%clk
0:02:22.5]} 10. O-O {[%clk 0:02:39.9]} 10... O-O-O {[%clk 0:02:21.1]} 11. a3
{[%clk 0:02:36.4]} 11... Nd4 {[%clk 0:02:08.9]} 12. b4 {[%clk 0:02:35.6]} 12...
Qa6 {[%clk 0:02:07.5]} 13. Bxd4 {[%clk 0:02:08.6]} 13... exd4 {[%clk 0:02:07.2]}
14. Ne4 {[%clk 0:02:08.5]} 14... e5 {[%clk 0:02:04.6]} 15. Nxf6 {[%clk
0:01:38.7]} 15... gxf6 {[%clk 0:02:04.8]} 16. Qd2 {[%clk 0:01:37]} 16... h5
{[%clk 0:02:04.2]} 17. f4 {[%clk 0:01:36.7]} 17... Bh6 {[%clk 0:02:04]} 18. Kh1
{[%clk 0:01:35.8]} 18... Rhg8 {[%clk 0:01:55]} 19. Rf2 {[%clk 0:01:35.5]} 19...
Qc6 {[%clk 0:01:51.5]} 20. Rg1 {[%clk 0:01:33.4]} 20... h4 {[%clk 0:01:49.9]}
21. h3 {[%clk 0:01:30]} 21... exf4 {[%clk 0:01:28]} 22. Nxf4 {[%clk 0:01:21.5]}
22... Rg3 {[%clk 0:01:27.8]} 23. Kh2 {[%clk 0:01:18.9]} 23... Rdg8 {[%clk
0:01:26.3]} 24. Qe2 {[%clk 0:01:12.5]} 24... a5 {[%clk 0:01:10.2]} 25. bxa5
{[%clk 0:00:58.7]} 25... Kb8 {[%clk 0:01:09.6]} 26. Qe4 {[%clk 0:00:47.2]} 26...
Qd6 {[%clk 0:01:01.5]} 27. Rb1 {[%clk 0:00:44.1]} 27... c6 {[%clk 0:00:59.9]}
28. Rg1 {[%clk 0:00:28.2]} 28... Ka7 {[%clk 0:00:56]} 29. a6 {[%clk 0:00:24.9]}
29... Kxa6 {[%clk 0:00:54.4]} 30. Kh1 {[%clk 0:00:16.7]} 30... Ka7 {[%clk
0:00:51.4]} 31. a4 {[%clk 0:00:13.3]} 31... Qe5 {[%clk 0:00:49.2]} 32. Kh2
{[%clk 0:00:06.2]} 32... Ka6 {[%clk 0:00:38]} 33. a5 {[%clk 0:00:05.7]} 33...
Kxa5 {[%clk 0:00:35.1]} 34. Ra1+ {[%clk 0:00:05]} 34... Kb6 {[%clk 0:00:35.4]}
35. Rb1+ {[%clk 0:00:04.3]} 35... Kc7 {[%clk 0:00:35.6]} 36. Ne6+ {[%clk
0:00:03.9]} 36... Kd6 {[%clk 0:00:30.8]} 37. Qxd4+ {[%clk 0:00:04]} 37... Qxd4
{[%clk 0:00:30.8]} 38. Nxd4 {[%clk 0:00:03.6]} 38... Kc7 {[%clk 0:00:24]} 39.
Nf5 {[%clk 0:00:03.6]} 39... R3g6 {[%clk 0:00:22.8]} 40. Nxh6 {[%clk 0:00:03.1]}
40... Rxh6 {[%clk 0:00:22.9]} 41. Rb4 {[%clk 0:00:03.5]} 41... b5 {[%clk
0:00:18.7]} 42. Rbf4 {[%clk 0:00:03.4]} 42... Rgg6 {[%clk 0:00:18.8]} 43. d4
{[%clk 0:00:03.2]} 43... Kd6 {[%clk 0:00:15.8]} 44. c3 {[%clk 0:00:03.5]} 44...
Kd5 {[%clk 0:00:15.9]} 45. Rf5+ {[%clk 0:00:03.9]} 45... Kd6 {[%clk 0:00:15.5]}
46. R2f4 {[%clk 0:00:03.6]} 46... Kc7 {[%clk 0:00:13.7]} 47. Rc5 {[%clk
0:00:03]} 47... Kb6 {[%clk 0:00:13.2]} 48. Rcf5 {[%clk 0:00:02.7]} 48... Kb7
{[%clk 0:00:12.3]} 49. Rf3 {[%clk 0:00:02.8]} 49... Kc7 {[%clk 0:00:12.2]} 50.
Kg1 {[%clk 0:00:03.2]} 50... Kb6 {[%clk 0:00:12.4]} 51. Kf2 {[%clk 0:00:03.5]}
51... Ka5 {[%clk 0:00:12.4]} 52. Rc5 {[%clk 0:00:02.9]} 52... Kb6 {[%clk
0:00:10.7]} 53. Rcf5 {[%clk 0:00:03.4]} 53... Ka5 {[%clk 0:00:10.6]} 54. Rc5
{[%clk 0:00:03.1]} 54... Kb6 {[%clk 0:00:10.8]} 55. Rcf5 {[%clk 0:00:03.3]}
1/2-1/2

[Event "*** Titled Tuesday Blitz"]
[Site "Chess.com"]
[Date "2021.03.09"]
[Round "4"]
[White "bazar-wokzal"]
[Black "MasterMK73"]
[Result "1-0"]
[WhiteElo "2477"]
[BlackElo "2300"]
[TimeControl "180+1"]
[EndTime "10:42:35 PST"]
[Termination "bazar-wokzal won by resignation"]

1. e4 {[%clk 0:02:56.3]} 1... c5 {[%clk 0:02:59.1]} 2. c3 {[%clk 0:02:55.5]}
2... d6 {[%clk 0:02:46.8]} 3. d4 {[%clk 0:02:55.1]} 3... Qc7 {[%clk 0:02:46.3]}
4. f4 {[%clk 0:02:50.8]} 4... Nd7 {[%clk 0:02:45.4]} 5. Nf3 {[%clk 0:02:50.4]}
5... g6 {[%clk 0:02:45.4]} 6. Bc4 {[%clk 0:02:34.3]} 6... cxd4 {[%clk
0:02:15.7]} 7. Qxd4 {[%clk 0:02:30.4]} 7... e5 {[%clk 0:02:01.9]} 8. Qd5 {[%clk
0:02:18.2]} 8... Nb6 {[%clk 0:01:47.5]} 9. Bb5+ {[%clk 0:02:16.4]} 9... Bd7
{[%clk 0:01:47.2]} 10. Qd3 {[%clk 0:02:08.5]} 10... Nf6 {[%clk 0:01:31]} 11.
fxe5 {[%clk 0:02:00.5]} 11... dxe5 {[%clk 0:01:30]} 12. Bg5 {[%clk 0:02:00.1]}
12... Bg7 {[%clk 0:01:28.5]} 13. Bxd7+ {[%clk 0:01:51.5]} 13... Nbxd7 {[%clk
0:01:23.8]} 14. O-O {[%clk 0:01:48.6]} 14... O-O {[%clk 0:01:11.1]} 15. Bxf6
{[%clk 0:01:35]} 15... Nxf6 {[%clk 0:01:09.1]} 16. Kh1 {[%clk 0:01:27.1]} 16...
Rfd8 {[%clk 0:01:08.3]} 17. Qe2 {[%clk 0:01:24.8]} 17... Rd7 {[%clk 0:01:01.8]}
18. Na3 {[%clk 0:01:24.3]} 18... a6 {[%clk 0:00:41.9]} 19. Rad1 {[%clk
0:01:11.4]} 19... Rad8 {[%clk 0:00:39.4]} 20. Rxd7 {[%clk 0:01:09.1]} 20... Rxd7
{[%clk 0:00:38.7]} 21. Nc4 {[%clk 0:01:06.6]} 21... Ne8 {[%clk 0:00:28.5]} 22.
Ne3 {[%clk 0:00:56.9]} 22... Nf6 {[%clk 0:00:24.9]} 23. Nd2 {[%clk 0:00:38.1]}
23... b5 {[%clk 0:00:22.5]} 24. Rf2 {[%clk 0:00:22.8]} 24... Qd6 {[%clk
0:00:20]} 25. Qf3 {[%clk 0:00:21.9]} 25... Qe7 {[%clk 0:00:17]} 26. h3 {[%clk
0:00:19.7]} 26... h5 {[%clk 0:00:17]} 27. Nd5 {[%clk 0:00:18.8]} 27... Nxd5
{[%clk 0:00:16.1]} 28. exd5 {[%clk 0:00:19.7]} 28... f5 {[%clk 0:00:16]} 29. c4
{[%clk 0:00:18.9]} 29... e4 {[%clk 0:00:16.1]} 30. Qe3 {[%clk 0:00:17.8]} 30...
Qe5 {[%clk 0:00:15.8]} 31. cxb5 {[%clk 0:00:17.4]} 31... axb5 {[%clk 0:00:15.3]}
32. a4 {[%clk 0:00:14.6]} 32... Qxd5 {[%clk 0:00:15.4]} 33. axb5 {[%clk
0:00:13.7]} 33... Qxb5 {[%clk 0:00:16.3]} 34. Qg5 {[%clk 0:00:11.1]} 34... Qc6
{[%clk 0:00:15]} 35. Nf1 {[%clk 0:00:09.1]} 35... Qe6 {[%clk 0:00:14.9]} 36. g4
{[%clk 0:00:08.3]} 36... hxg4 {[%clk 0:00:13.8]} 37. hxg4 {[%clk 0:00:08.6]}
37... Rf7 {[%clk 0:00:13.8]} 38. Ng3 {[%clk 0:00:08]} 38... fxg4 {[%clk
0:00:12.3]} 39. Qd8+ {[%clk 0:00:06.9]} 39... Rf8 {[%clk 0:00:11.3]} 40. Rxf8+
{[%clk 0:00:06.2]} 40... Bxf8 {[%clk 0:00:12.2]} 41. Qd4 {[%clk 0:00:05.8]}
41... Qf5 {[%clk 0:00:12.2]} 42. Nxf5 {[%clk 0:00:05.3]} 42... gxf5 {[%clk
0:00:13.1]} 43. Qf6 {[%clk 0:00:05.3]} 43... g3 {[%clk 0:00:13]} 44. Qxf5 {[%clk
0:00:05.5]} 44... Bg7 {[%clk 0:00:13.7]} 45. Kg2 {[%clk 0:00:05.7]} 45... Bxb2
{[%clk 0:00:14.6]} 46. Qxe4 {[%clk 0:00:06.1]} 46... Bg7 {[%clk 0:00:14.9]} 47.
Kxg3 {[%clk 0:00:06.5]} 47... Kf7 {[%clk 0:00:15.6]} 48. Kg4 {[%clk 0:00:07.4]}
48... Kf6 {[%clk 0:00:16.2]} 49. Qf5+ {[%clk 0:00:07.4]} 49... Ke7 {[%clk
0:00:15.8]} 50. Kg5 {[%clk 0:00:08.3]} 50... Ba1 {[%clk 0:00:14.2]} 51. Kg6
{[%clk 0:00:09.2]} 51... Bf6 {[%clk 0:00:14.7]} 52. Qxf6+ {[%clk 0:00:09.1]}
52... Kd7 {[%clk 0:00:15.6]} 53. Qe5 {[%clk 0:00:08.8]} 53... Kc6 {[%clk
0:00:15.1]} 54. Kf6 {[%clk 0:00:09.7]} 1-0

[Event "*** Titled Tuesday Blitz"]
[Site "Chess.com"]
[Date "2021.03.09"]
[Round "4"]
[White "MillyNeuf"]
[Black "FGHSMN"]
[Result "0-1"]
[WhiteElo "2276"]
[BlackElo "2687"]
[TimeControl "180+1"]
[EndTime "10:42:35 PST"]
[Termination "FGHSMN won by checkmate"]

1. e4 {[%clk 0:03:00.9]} 1... c5 {[%clk 0:02:59.6]} 2. Nc3 {[%clk 0:03:00]} 2...
Nc6 {[%clk 0:02:59.1]} 3. g3 {[%clk 0:03:00.3]} 3... g6 {[%clk 0:02:58.3]} 4.
Bg2 {[%clk 0:03:01.2]} 4... Bg7 {[%clk 0:02:58.5]} 5. d3 {[%clk 0:03:01.9]} 5...
d6 {[%clk 0:02:58.2]} 6. Be3 {[%clk 0:03:02.1]} 6... Nf6 {[%clk 0:02:59.1]} 7.
h3 {[%clk 0:03:02.1]} 7... O-O {[%clk 0:02:59.5]} 8. f4 {[%clk 0:03:02.5]} 8...
e6 {[%clk 0:02:58.9]} 9. Nf3 {[%clk 0:03:02.9]} 9... Nd7 {[%clk 0:02:57.2]} 10.
Bf2 {[%clk 0:02:55.8]} 10... b5 {[%clk 0:02:52.3]} 11. Qd2 {[%clk 0:02:55]}
11... b4 {[%clk 0:02:51.2]} 12. Nd1 {[%clk 0:02:54.9]} 12... a5 {[%clk
0:02:48.2]} 13. O-O {[%clk 0:02:54.5]} 13... a4 {[%clk 0:02:47.6]} 14. Rb1
{[%clk 0:02:49.3]} 14... a3 {[%clk 0:02:46.3]} 15. b3 {[%clk 0:02:48.5]} 15...
Bb7 {[%clk 0:02:44.3]} 16. g4 {[%clk 0:02:47.9]} 16... Rc8 {[%clk 0:02:33.7]}
17. Ne3 {[%clk 0:02:43.7]} 17... Nb6 {[%clk 0:02:18.9]} 18. f5 {[%clk
0:02:39.8]} 18... d5 {[%clk 0:02:17.4]} 19. Bh4 {[%clk 0:02:27.1]} 19... f6
{[%clk 0:02:04.7]} 20. e5 {[%clk 0:02:16.7]} 20... g5 {[%clk 0:01:40.9]} 21.
exf6 {[%clk 0:02:05.6]} 21... Bxf6 {[%clk 0:01:41.8]} 22. Bg3 {[%clk 0:02:02.7]}
22... e5 {[%clk 0:01:40.4]} 23. Qf2 {[%clk 0:01:47.4]} 23... Nd4 {[%clk
0:01:12.2]} 24. Nxe5 {[%clk 0:01:34.3]} 24... Re8 {[%clk 0:01:12.3]} 25. Nf3
{[%clk 0:01:25.6]} 25... Nxf3+ {[%clk 0:01:12.4]} 26. Qxf3 {[%clk 0:01:21.4]}
26... Rxe3 {[%clk 0:01:12.5]} 27. Qxe3 {[%clk 0:01:10]} 27... Bd4 {[%clk
0:01:11.5]} 28. Bf2 {[%clk 0:01:06.9]} 28... Bxe3 {[%clk 0:01:10.9]} 29. Bxe3
{[%clk 0:01:07.8]} 29... Qd7 {[%clk 0:01:05.9]} 30. Bxg5 {[%clk 0:01:06]} 30...
d4 {[%clk 0:01:05.4]} 31. Rbe1 {[%clk 0:00:58.8]} 31... Bxg2 {[%clk 0:01:04.4]}
32. Kxg2 {[%clk 0:00:59.7]} 32... Nd5 {[%clk 0:01:04.8]} 33. Re5 {[%clk
0:00:56.4]} 33... Re8 {[%clk 0:01:04]} 34. Rfe1 {[%clk 0:00:53.4]} 34... Ne3+
{[%clk 0:01:02.7]} 35. R5xe3 {[%clk 0:00:42.9]} 35... dxe3 {[%clk 0:01:02.4]}
36. Bxe3 {[%clk 0:00:43.2]} 36... Qd5+ {[%clk 0:00:57.3]} 37. Kf2 {[%clk
0:00:42]} 37... Qe5 {[%clk 0:00:55.3]} 38. Bd2 {[%clk 0:00:34]} 38... Qh2+
{[%clk 0:00:44.7]} 39. Kf1 {[%clk 0:00:33.8]} 39... Rxe1+ {[%clk 0:00:31.4]} 40.
Kxe1 {[%clk 0:00:34.7]} 40... Qg1+ {[%clk 0:00:30.1]} 41. Ke2 {[%clk 0:00:30.4]}
41... Qb1 {[%clk 0:00:31]} 42. Bf4 {[%clk 0:00:09.9]} 42... Qxa2 {[%clk
0:00:22.7]} 43. Kd2 {[%clk 0:00:10]} 43... Qb2 {[%clk 0:00:17.8]} 44. f6 {[%clk
0:00:07.4]} 44... Qc3+ {[%clk 0:00:15.6]} 45. Kd1 {[%clk 0:00:06.5]} 45... a2
{[%clk 0:00:16.5]} 46. Bd2 {[%clk 0:00:06.3]} 46... a1=Q+ {[%clk 0:00:15.4]} 47.
Ke2 {[%clk 0:00:06.7]} 47... Qxc2 {[%clk 0:00:16.3]} 48. f7+ {[%clk 0:00:05.8]}
48... Kxf7 {[%clk 0:00:16.5]} 49. g5 {[%clk 0:00:06.7]} 49... Qad1+ {[%clk
0:00:16.8]} 50. Ke3 {[%clk 0:00:05]} 50... Qcxd2+ {[%clk 0:00:17.7]} 51. Ke4
{[%clk 0:00:05.9]} 51... Q1e2+ {[%clk 0:00:17.5]} 52. Kd5 {[%clk 0:00:05.8]}
52... Qexd3+ {[%clk 0:00:17.8]} 53. Kc6 {[%clk 0:00:06.7]} 53... Qd6+ {[%clk
0:00:17.7]} 54. Kb5 {[%clk 0:00:06.7]} 54... Q2d3+ {[%clk 0:00:17.7]} 55. Ka5
{[%clk 0:00:05.8]} 55... Q3a6# {[%clk 0:00:18.6]} 0-1

[Event "*** Titled Tuesday Blitz"]
[Site "Chess.com"]
[Date "2021.03.09"]
[Round "4"]
[White "Grimlock_Glasgow"]
[Black "anon102030"]
[Result "0-1"]
[WhiteElo "2508"]
[BlackElo "2699"]
[TimeControl "180+1"]
[EndTime "10:42:36 PST"]
[Termination "anon102030 won by resignation"]

1. e4 {[%clk 0:03:00.9]} 1... e5 {[%clk 0:02:59.9]} 2. Nf3 {[%clk 0:02:59.9]}
2... Nc6 {[%clk 0:03:00.4]} 3. Bc4 {[%clk 0:03:00.1]} 3... Bc5 {[%clk
0:03:00.1]} 4. c3 {[%clk 0:02:59.6]} 4... Nf6 {[%clk 0:03:00.6]} 5. d4 {[%clk
0:03:00]} 5... exd4 {[%clk 0:03:01.5]} 6. e5 {[%clk 0:03:00]} 6... d5 {[%clk
0:03:01.2]} 7. Bb5 {[%clk 0:03:00.4]} 7... Ne4 {[%clk 0:03:01.7]} 8. cxd4 {[%clk
0:03:00.9]} 8... Bb6 {[%clk 0:03:01.5]} 9. Nc3 {[%clk 0:03:00.9]} 9... O-O
{[%clk 0:03:00.5]} 10. Be3 {[%clk 0:03:00.6]} 10... Bg4 {[%clk 0:02:59]} 11. h3
{[%clk 0:03:00.8]} 11... Bh5 {[%clk 0:02:59.1]} 12. Qc2 {[%clk 0:03:00.9]} 12...
Bg6 {[%clk 0:02:47.5]} 13. Qb3 {[%clk 0:03:00.5]} 13... Ne7 {[%clk 0:02:45.6]}
14. O-O {[%clk 0:02:53.4]} 14... c6 {[%clk 0:02:44.4]} 15. Bd3 {[%clk 0:02:46]}
15... Nd2 {[%clk 0:02:31.9]} 16. Nxd2 {[%clk 0:02:38.4]} 16... Bxd3 {[%clk
0:02:32.3]} 17. Rfe1 {[%clk 0:02:26.6]} 17... Bg6 {[%clk 0:02:29.4]} 18. Na4
{[%clk 0:02:01.8]} 18... Nf5 {[%clk 0:02:27.6]} 19. Nf3 {[%clk 0:01:59.8]} 19...
Ba5 {[%clk 0:02:22.9]} 20. Red1 {[%clk 0:01:56.2]} 20... Nxe3 {[%clk 0:02:11]}
21. Qxe3 {[%clk 0:01:54.3]} 21... f6 {[%clk 0:02:02.7]} 22. Nc5 {[%clk
0:01:49.2]} 22... Qc8 {[%clk 0:01:50]} 23. exf6 {[%clk 0:01:39.3]} 23... Rxf6
{[%clk 0:01:48.4]} 24. Ne5 {[%clk 0:01:37.4]} 24... Bb6 {[%clk 0:01:39.5]} 25.
Rac1 {[%clk 0:01:34.7]} 25... Bxc5 {[%clk 0:01:37.9]} 26. Rxc5 {[%clk
0:01:34.3]} 26... Qf5 {[%clk 0:01:36.1]} 27. Rc3 {[%clk 0:01:16]} 27... Raf8
{[%clk 0:01:26.5]} 28. f3 {[%clk 0:01:09.5]} 28... Be8 {[%clk 0:01:21.7]} 29. g4
{[%clk 0:01:08.2]} 29... Qf4 {[%clk 0:01:20.7]} 30. Kg2 {[%clk 0:01:04.3]} 30...
h5 {[%clk 0:01:16.3]} 31. Qxf4 {[%clk 0:00:57.9]} 31... Rxf4 {[%clk 0:01:17.2]}
32. Kg3 {[%clk 0:00:57.8]} 32... g5 {[%clk 0:01:14.9]} 33. Re3 {[%clk
0:00:56.4]} 33... h4+ {[%clk 0:01:01.9]} 34. Kg2 {[%clk 0:00:51.3]} 34... Kg7
{[%clk 0:01:02.8]} 35. b4 {[%clk 0:00:50.5]} 35... Bg6 {[%clk 0:00:46.5]} 36.
Ra3 {[%clk 0:00:45.3]} 36... a6 {[%clk 0:00:46]} 37. Rc3 {[%clk 0:00:44.5]}
37... Re8 {[%clk 0:00:40.9]} 38. Kf2 {[%clk 0:00:36.4]} 38... Rxe5 {[%clk
0:00:35.3]} 39. dxe5 {[%clk 0:00:35.4]} 39... Rxb4 {[%clk 0:00:36.2]} 40. Rb3
{[%clk 0:00:27.7]} 40... Rxb3 {[%clk 0:00:31.1]} 41. axb3 {[%clk 0:00:28.6]}
41... b6 {[%clk 0:00:15.9]} 42. Rd2 {[%clk 0:00:26.7]} 42... Kf7 {[%clk
0:00:10.7]} 43. Ke3 {[%clk 0:00:26.3]} 43... Ke6 {[%clk 0:00:10.6]} 44. f4
{[%clk 0:00:26.9]} 44... gxf4+ {[%clk 0:00:09.9]} 45. Kxf4 {[%clk 0:00:27.8]}
45... c5 {[%clk 0:00:08.8]} 46. Kg5 {[%clk 0:00:21.6]} 46... Be4 {[%clk
0:00:09.2]} 47. Kxh4 {[%clk 0:00:22.2]} 47... b5 {[%clk 0:00:07.7]} 48. g5
{[%clk 0:00:20.1]} 48... c4 {[%clk 0:00:08.6]} 49. bxc4 {[%clk 0:00:19.3]} 49...
bxc4 {[%clk 0:00:09.5]} 50. Kh5 {[%clk 0:00:17.7]} 50... c3 {[%clk 0:00:09.2]}
51. Rd1 {[%clk 0:00:17.2]} 51... c2 {[%clk 0:00:05]} 52. Ra1 {[%clk 0:00:16.5]}
52... d4 {[%clk 0:00:04.2]} 53. g6 {[%clk 0:00:14.3]} 53... Bxg6+ {[%clk
0:00:02.7]} 54. Kxg6 {[%clk 0:00:14.2]} 54... d3 {[%clk 0:00:03.6]} 55. Rxa6+
{[%clk 0:00:05.8]} 55... Kxe5 {[%clk 0:00:04.1]} 56. Ra5+ {[%clk 0:00:06.2]}
56... Kd4 {[%clk 0:00:04.6]} 0-1